[Event "XTX Markets London Classic-Elite 2024"]
[Site "London"]
[Date "2024.12.01"]
[Round "3.2"]
[White "Hong, Andrew"]
[Black "Vitiugov, Nikita"]
[Result "1-0"]
[WhiteElo "2572"]
[BlackElo "2668"]
[Annotator "TA"]
[PlyCount "131"]
[EventDate "2024.??.??"]
[TimeControl "60"]

{[%evp 62,131,0,0,16,0,25,0,25,0,0,0,61,4,9,0,62,2,4,7,8,5,37,0,0,0,0,0,0,0,0,-6,40,35,54,54,76,65,53,-67,52,52,66,29,31,29,66,66,66,66,70,0,96,97,191,94,87,87,87,87,302,286,716,704,917,909,29971,29972,29971,29972,29971,12353]} 1. e4 {[%emt 0:00:07]} c5 {[%emt 0:00:22]} 2. Nf3 {[%emt 0:00:19]} Nc6 {[%emt 0:00:17]} 3. Bb5 {[%emt 0:01:01]} g6 {[%emt 0:00:22]} 4. Bxc6 {[%emt 0:01:35]} dxc6 {[%emt 0:00:18]} 5. d3 {[%emt 0:00:36]} Qc7 {[%emt 0:01:17]} 6. Be3 {[%emt 0:07:38] B31: Sicilian: 2...Nc6 3 Bb5 g6.} ({RR} 6. O-O e5 7. Be3 Nf6 8. Qe1 Bg4 9. Nbd2 Nh5 10. a3 Be7 11. Qb1 Nf4 12. b4 Ne2+ 13. Kh1 Nd4 14. Ng1 g5 15. bxc5 Bxc5 16. Bxg5 Rg8 17. Bh4 Be7 18. Bg3 O-O-O 19. Nc4 f6 20. a4 Ne6) 6... e5 {[%emt 0:02:13]} 7. a4 {[%emt 0:04:11]} ({RR} 7. Qd2 b6 8. a4 a5 9. Na3 f6 10. O-O Be6 11. Nc4 Bxc4 12. dxc4 Rd8 13. Qe2 Bh6 14. c3 Bxe3 15. Qxe3 Ne7 16. b4 Qd6 17. bxa5 bxa5 18. Rab1 Kf7 19. h3 Rd7 20. Rb2 Qd3 21. Qxc5 Qxc3 {Wei,Y (2758)-Carlsen,M (2828) Warsaw, Poland 2024 0-1 (42)}) ({RR} 7. h3 f6 ({RR} 7... Be6 8. a4 f6 9. Qd2 a5 10. Na3 b6 11. b3 Ne7 12. Bh6 O-O-O 13. Bxf8 Rhxf8 14. Qh6 Ng8 15. Qe3 Ne7 16. Qh6 Ng8 17. Qe3 Ne7 18. O-O-O Kb7 19. Kb2 Nc8 20. Rhe1 g5) 8. O-O Nh6 9. Nh2 Be6 10. f4 O-O-O 11. Qc1 Nf7 12. f5 gxf5 13. exf5 Bd7 14. Ng4 Be7 15. Nc3 h5 16. Nh6 Nd6 17. Ne4 Nxe4 18. dxe4 Be8 19. g4 Bf8 20. g5 Qg7 21. Kh2 fxg5) 7... Nf6 {[%emt 0:10:30]} 8. Na3 $146 {[%emt 0:10:32]} ({Predecessor:} 8. h3 Nd7 9. Na3 Bg7 10. Qd2 O-O 11. Bh6 b6 12. O-O a5 13. Bxg7 Kxg7 14. Nc4 {0-1 Goryachkina,A (2584)-Melkumyan,H (2645) Titled Tuesday intern op 13th Dec Late blitz 2022 (9)}) ({RR} 8. h3 Nd7 9. Na3 Bg7 10. Qd2 O-O 11. Bh6 b6 12. O-O a5 13. Bxg7 Kxg7 14. Nc4 Ba6 15. b3 Rae8 16. Qc3 f6 17. Qd2 Rf7 18. Nh2 Nf8 19. f4 exf4 20. Qxf4 Qxf4 21. Rxf4 Ne6 22. Rf2 Rb8 {Goryachkina,A (2584)-Melkumyan,H (2645) chess.com INT 2022 0-1 (113)}) ({RR} 8. h3 h6 9. Qd2 Be6 10. Na3 a5 11. O-O g5 12. Qc3 Nd7 13. Nc4 b5 14. axb5 cxb5 15. Rxa5 Rb8 16. Rfa1 bxc4 17. Ra7 Rb7 18. Ra8+ Ke7 19. dxc4 Bg7 20. R8a5 Rhb8 21. b3 f6 22. Ne1 Bf8 {Perunovic,M (2525)-Nenezic,M (2492) Bajina Basta SRB 2024 0-1 (51)}) 8... Be6 {[%emt 0:05:05]} 9. O-O {[%emt 0:05:53]} h6 {[%emt 0:03:52]} 10. Qe1 {[%emt 0:02:33]} Nd7 {[%emt 0:08:14]} 11. Qc3 {[%emt 0:01:16]} g5 {[%emt 0:04:25]} 12. a5 {[%emt 0:10:56]} f6 {[%emt 0:02:41]} 13. Nd2 {[%emt 0:03:42]} Rb8 {[%emt 0:02:24]} 14. Nb3 {[%emt 0:01:58]} b6 {[%emt 0:04:39]} 15. axb6 {[%emt 0:04:25]} axb6 {[%emt 0:00:06]} 16. Nc4 {[%emt 0:05:51]} b5 {[%emt 0:10:32]} 17. Qa5 {[%emt 0:01:55]} Qc8 {[%emt 0:08:18]} 18. Ncd2 {[%emt 0:02:00]} Be7 {[%emt 0:00:29]} 19. c4 {[%emt 0:05:42]} Kf7 {[%emt 0:01:03]} 20. Qc3 {[%emt 0:02:36]} Qb7 {[%emt 0:02:14]} 21. Ra5 {[%emt 0:04:12]} bxc4 {[%emt 0:03:31]} 22. dxc4 {[%emt 0:01:03]} Qb4 {[%emt 0:01:15]} 23. Qd3 {[%emt 0:08:56]} Ra8 {[%emt 0:05:16]} 24. Rfa1 {[%emt 0:01:16]} Rxa5 {[%emt 0:00:34]} 25. Rxa5 {[%emt 0:00:15]} Rd8 {[%emt 0:05:55]} 26. Ra7 {[%emt 0:02:01]} Qb8 {[%emt 0:01:44]} 27. Ra1 {[%emt 0:00:39]} Qb4 {[%emt 0:01:40]} 28. Ra7 {[%emt 0:00:59]} Qb8 {[%emt 0:00:49]} 29. Ra1 {[%emt 0:00:24]} Qb4 {[%emt 0:00:15]} 30. Qc2 {[%emt 0:05:19]} Rb8 {[%emt 0:01:31]} 31. Ra7 {[%emt 0:00:28]} Qb6 {[%emt 0:02:29]} 32. Ra2 {[%emt 0:00:52]} Rb7 {[%emt 0:02:57]} 33. Nc1 {[%emt 0:01:03]} Ra7 {[%emt 0:03:37]} 34. Qb1 {[%emt 0:01:39]} Ra6 {[%emt 0:01:36]} 35. Qa1 {[%emt 0:00:51]} Rxa2 {[%emt 0:00:59]} 36. Qxa2 {[%emt 0:00:03]} Bd8 {[%emt 0:00:04]} (36... Nf8 $11) 37. Ncb3 {[%emt 0:02:45]} (37. Ne2 $14) 37... Be7 {[%emt 0:02:19]} 38. Nc1 {[%emt 0:00:33]} ({White should play} 38. h3 $11) 38... Bd8 $14 {[%emt 0:00:16]} 39. Nd3 {[%emt 0:00:42]} ({Better is} 39. Ne2 $14) 39... Qa5 $11 {[%emt 0:00:27]} 40. Qb1 {[%emt 0:00:24]} (40. Qxa5 {simplifies} Bxa5 41. b3 Bc3 42. Kf1) 40... Be7 {[%emt 0:02:00]} 41. Qd1 {[%emt 0:05:16]} Kg6 {[%emt 0:05:10]} 42. g4 {[%emt 0:12:04]} Kf7 {[%emt 0:00:55]} 43. h4 {[%emt 0:02:26]} Nf8 {[%emt 0:04:32]} (43... gxh4 44. Bxh6 Qd8 45. Qe2 $14) 44. h5 {[%emt 0:05:21]} Bc8 {[%emt 0:02:56]} 45. Nf1 {[%emt 0:03:11]} Ne6 {[%emt 0:01:32]} 46. Ng3 {[%emt 0:00:19]} Nf4 {[%emt 0:05:04]} (46... Qa2 $11 {might be stronger.}) 47. Bxf4 $14 {[%emt 0:00:54]} exf4 {[%emt 0:01:50]} 48. Nf5 {[%emt 0:00:08]} Bf8 {[%emt 0:00:12]} 49. Kg2 {[%emt 0:02:15]} Be6 {[%emt 0:01:36]} 50. Qc2 {[%emt 0:02:07]} (50. b3 $14) 50... Qa6 {[%emt 0:00:44]} (50... Qa2 $15) 51. b3 $14 {[%emt 0:00:14]} Qa1 {[%emt 0:00:25]} 52. Nc1 {[%emt 0:00:48]} (52. Qc1 {is more complex.} Qa2 53. Qb2 Qa8 54. f3) 52... Ke8 {[%emt 0:01:45]} 53. Ne2 {[%emt 0:01:35]} Kf7 {[%emt 0:01:17]} 54. Ng1 {[%emt 0:00:23]} Ke8 {[%emt 0:02:55]} 55. Qd3 {[%emt 0:01:07]} Qa7 {[%emt 0:01:14]} 56. e5 {[%emt 0:00:37]} ({White should try} 56. Nf3 $14) 56... fxe5 {[%emt 0:02:10]} (56... Qd7 $1 $11 {keeps the balance.} 57. Qe4 (57. Qxd7+ Kxd7 58. exf6 Bxf5 $11) 57... Bxf5 58. gxf5 fxe5) 57. Nf3 $16 {[%emt 0:00:15]} Qc7 {[%emt 0:01:03]} (57... Bxf5 $16 58. Qxf5 Bg7) 58. Qe4 {[%emt 0:00:20]} (58. Nxh6 $1 $18 {has better winning chances.} Bxh6 59. Qg6+ Qf7 60. Qxh6 Bxg4 61. Qxc6+ (61. Nxg5 Qxh5 62. Qg7 Kd8 $11) 61... Bd7 62. Qxc5 Qxh5 63. Qxe5+ Kf8 64. Qf6+ (64. Qxg5 Qh3+ 65. Kg1 Qxf3 $17) (64. Nxg5 $2 Bh3+ 65. Kh2 Bf5+ $19) 64... Ke8 65. Ne5 (65. Qxg5 $2 Qh3+ 66. Kg1 Qxf3 $19) (65. Nxg5 Qg4+ 66. Kh2 Qh5+ 67. Kg2 Qg4+ 68. Kh1 Qh4+ 69. Kg2 Qg4+ $11)) 58... Bxf5 $16 {[%emt 0:03:28]} 59. Qxf5 {[%emt 0:00:12]} Bg7 {[%emt 0:00:02]} 60. Qe6+ $1 {[%emt 0:00:31]} Kf8 $2 {[%emt 0:00:39] [#]} (60... Qe7 $16 61. Qxc6+ Qd7 62. Qxd7+ (62. Qxc5 Qxg4+ 63. Kf1 Qxf3 $11) 62... Kxd7) 61. Nd2 $1 $18 {[%emt 0:00:27]} Qd8 $2 {[%emt 0:00:32]} (61... f3+ 62. Nxf3 (62. Kxf3 Qd8 $18) 62... e4) 62. Ne4 $18 {[%emt 0:00:29]} Qe8 {[%emt 0:01:48]} 63. Nxc5 {[%emt 0:00:46]} Qxe6 {[%emt 0:00:37]} 64. Nxe6+ {[%emt 0:00:04]} Kf7 {[%emt 0:00:02] [#]} 65. Nxg7 $1 {[%emt 0:00:13]} (65. Nd8+ Ke7 66. Nxc6+ Kd7 $11) 65... Kxg7 {[%emt 0:00:04]} 66. b4 {[%emt 0:00:16]} (66. Kf3 $142 Kf6 67. Ke4 Ke6 68. b4 f3 69. Kxf3 Ke7 70. Ke4 Ke6 71. b5) 1-0

[Event "XTX Markets London Classic-Elite 2024"]
[Site "London"]
[Date "2024.12.01"]
[Round "3.3"]
[White "Jones, Gawain C B"]
[Black "Vidit, Santosh Gujrathi"]
[Result "1/2-1/2"]
[WhiteElo "2639"]
[BlackElo "2739"]
[Annotator "TA"]
[PlyCount "60"]
[EventDate "2024.??.??"]
[TimeControl "60"]

{[%evp 10,60,11,0,8,11,17,20,40,0,0,0,4,0,0,0,0,0,0,0,10,15,16,-14,-12,-10,-14,-26,-3,-24,0,-6,-3,-4,0,-8,0,0,0,0,0,0,-11,-14,-4,-18,0,0,0,3,25,22,25]} 1. Nf3 {[%emt 0:00:38]} d5 {[%emt 0:00:34]} 2. g3 {[%emt 0:00:06]} Nf6 {[%emt 0:01:08]} 3. Bg2 {[%emt 0:00:07]} c5 {[%emt 0:02:21]} 4. O-O {[%emt 0:00:21]} e6 {[%emt 0:00:11]} 5. c4 {[%emt 0:00:29]} d4 {[%emt 0:00:27]} 6. e3 {[%emt 0:00:38]} Nc6 {[%emt 0:00:13]} 7. d3 {[%emt 0:00:20]} h6 {[%emt 0:00:16]} 8. exd4 {[%emt 0:07:02]} cxd4 {[%emt 0:00:10]} 9. Na3 {[%emt 0:00:15]} Bxa3 {[%emt 0:02:11]} 10. bxa3 {[%emt 0:00:05]} O-O $1 {[%emt 0:00:16]} 11. Re1 {[%emt 0:02:09]} Re8 {[%emt 0:00:17]} 12. Bf4 {[%emt 0:06:12]} Ng4 $1 {[%emt 0:01:22]} 13. Ne5 {[%emt 0:10:14]} ({Don't go for} 13. Nxd4 $2 Nxd4 14. Bd2 (14. Qxg4 $2 {perishes.} e5 $19) 14... e5 $19) 13... Ngxe5 {[%emt 0:01:07]} 14. Bxe5 {[%emt 0:00:04]} f6 {[%emt 0:22:41]} 15. Bf4 {[%emt 0:00:47]} e5 {[%emt 0:00:54]} 16. Bd2 {[%emt 0:00:32]} Bf5 {[%emt 0:05:54]} 17. Rb1 {[%emt 0:06:41]} Qd7 {[%emt 0:02:04]} (17... Bxd3 18. Bd5+ Kh8 19. Rxb7 $18) 18. Qf3 $146 {[%emt 0:02:12]} ({RR} 18. Bd5+ Be6 19. Be4 Rac8 20. a4 Rc7 21. a5 Bf5 22. Bd5+ Be6 23. Be4 Bf5 24. Bd5+ Be6 25. Be4 {½-½ (25) Esipenko,A (2668)-Eljanov,P (2697) Hamburg GER 2023}) 18... Rab8 {[%emt 0:09:53][%cal Oe5e4]} 19. Qd5+ {[%emt 0:07:19]} Qf7 {[%emt 0:10:26]} 20. Qxf7+ {[%emt 0:05:43]} Kxf7 {[%emt 0:00:02]} 21. Rb3 {[%emt 0:00:38]} Nd8 {[%emt 0:01:50]} 22. f4 {[%emt 0:03:10]} b6 {[%emt 0:12:49]} 23. Bd5+ {[%emt 0:21:11]} Kg6 {[%emt 0:02:29]} 24. fxe5 {[%emt 0:05:42]} Rxe5 {[%emt 0:02:17]} 25. Rxe5 {[%emt 0:00:06]} fxe5 {[%emt 0:00:05]} 26. Bb4 {[%emt 0:03:51]} Rc8 {[%emt 0:09:19]} 27. Bd6 {[%emt 0:00:18]} Nf7 {[%emt 0:00:23]} 28. Bxf7+ {[%emt 0:00:23]} Kxf7 {[%emt 0:00:01]} 29. Bxe5 {[%emt 0:00:09][%cal Og1f2]} Re8 {[%emt 0:02:46]} 30. Bxd4 {[%emt 0:00:10]} Rd8 {[%emt 0:01:00] An uneventful encounter. Weighted Error Value: White=0.05 (flawless) /Black=0.06 (flawless) . Inaccurate: 	White=2 	--- OK: 	White=12 	Black=8 Best: 	White=1 	--- Strong: 	--- 	Black=2} 1/2-1/2

[Event "XTX Markets London Classic-Elite 2024"]
[Site "London"]
[Date "2024.12.02"]
[Round "4.1"]
[White "Ju, Wenjun"]
[Black "Royal, Shreyas"]
[Result "1-0"]
[WhiteElo "2563"]
[BlackElo "2520"]
[Annotator "TA"]
[PlyCount "67"]
[EventDate "2024.??.??"]
[TimeControl "60"]

{[%evp 9,66,16,23,29,40,55,61,63,89,96,90,85,108,104,105,106,142,128,130,129,121,94,138,135,137,137,136,125,151,156,246,243,243,246,400,218,210,214,1109,1151,1183,1380,1334,757,1373,1412,1412,1225,1387,1254,1413,1411,29993,29994,29994,29995,29995,29996,29999]} 1. e4 {[%emt 0:05:05] Meyer,Claus Dieter} c6 {[%emt 0:00:01]} 2. d4 {[%emt 0:00:30]} d5 {[%emt 0:00:30]} 3. e5 {[%emt 0:00:30]} c5 {[%emt 0:00:30]} 4. dxc5 {[%emt 0:00:30]} e6 {[%emt 0:00:30]} 5. Bd3 {[%emt 0:00:30]} Bxc5 {[%emt 0:00:30]} 6. Qg4 {[%emt 0:00:30]} Kf8 {[%emt 0:00:30]} ({RR} 6... Ne7 7. b4 ({RR} 7. Qxg7 Rg8 8. Qxh7 Qb6 9. Nh3 Nbc6 ({RR} 9... Rxg2 10. Kf1 Rg8 11. Rg1 Rxg1+ 12. Kxg1)) 7... h5 ({RR} 7... Bb6 8. Nf3 a5 ({RR} 8... Ng6) 9. b5 ({RR} 9. Qxg7) 9... Ng6 10. h4 f5 ({RR} 10... Qc7 11. Bb2 Qc5) 11. Qg3 O-O 12. h5 Nh8 13. Bh6 Qe7 14. Bg5 Qb4+ ({RR} 14... Qc7) 15. Nbd2 ({RR} 15. Bd2) 15... Qg4 ({RR} 15... Nd7) 16. Qh2 Nd7 ({RR} 16... Qb4) 17. Bf4 Nc5 18. Be2 Ne4 19. Rf1 ({RR} 19. Nd4) 19... Nc3 20. Ng1 Nxe2 21. Nxe2 g6 22. hxg6) 8. Qf4 ({RR} 8. Qg3 Bd4 9. c3 Qc7) 8... Bb6 ({RR} 8... g5 9. Qf6 ({RR} 9. Qxg5 Bxb4+ 10. c3 Bc5) 9... Bxb4+ 10. c3) 9. Nf3 Nbc6 10. Nbd2 a5 11. b5 ({RR} 11. bxa5 Bxa5 12. O-O Nf5) 11... Nb4 12. Ba3 Nxd3+ 13. cxd3 Bd7 14. Qa4 Nf5 15. Rc1 g5 16. h3 Rc8 17. Rxc8 Qxc8 18. Ke2 Qb8 ({RR} 18... Qd8 19. Nb3 Rg8 20. g4 ({RR} 20. g3 f6) ({RR} 20. Bc5 Bc7) 20... Nh4 21. Bc5 Bc7 22. Nxh4 gxh4) 19. Nb3 Qa7 ({RR} 19... Rg8 20. g4 Nh4 21. Bd6 Qd8 ({RR} 21... Qa7 22. Nxh4 gxh4 23. Rc1 Bxf2 ({RR} 23... hxg4 24. Nc5 Bxc5 25. Rxc5 Qb6 26. hxg4 h3 27. Qf4) 24. Rc8+ Bxc8 25. b6+ Bd7 26. bxa7) 22. Rc1 hxg4 ({RR} 22... Nxf3 23. Kxf3) 23. hxg4 f6 24. Nc5) ({RR} 19... Bd8 20. Rc1 b6 21. g4) ({RR} 19... Nh4 20. Bd6 Qd8 21. Nxh4 gxh4 22. Nc5 Qg5 23. Nxb7) 20. Rc1 g4 ({RR} 20... Bxf2 21. Rc8+ Bxc8 22. b6+ Bd7 23. bxa7) ({RR} 20... Qb8 21. Nc5 h4 22. Kf1 Rg8 23. Rc2 Rg6 24. Nxd7 Kxd7 25. Bc5) 21. hxg4 {Dominguez Perez,L (2760)-Nepomniachtchi,I (2775) Dortmund 2019 CBM 191 [Meyer,Claus Dieter] 1-0}) 7. Nf3 {[%emt 0:00:30]} Nc6 {[%emt 0:00:30]} 8. O-O {[%emt 0:00:30] White is slightly better.} f6 $146 {[%emt 0:00:30]} ({RR} 8... h5 9. Qf4 Nh6 10. a3 a6 11. b4 Be7 12. Re1 Rg8 13. h4 Ng4 14. Ng5 Bxg5 15. hxg5 g6 16. Nd2 Qc7 17. Bb2 b5 18. Nb3 a5 19. f3 Qb6+ 20. Nc5 axb4 21. axb4 Rxa1 22. Rxa1 {1-0 (22) Popov,K (2376)-Laddha,S (2308) chess.com INT 2024}) 9. Qg3 {[%emt 0:00:30]} Nxe5 {[%emt 0:00:30]} 10. Nxe5 {[%emt 0:00:30]} fxe5 {[%emt 0:00:30]} 11. Qxe5 {[%emt 0:00:30]} Bd6 {[%emt 0:00:30]} 12. Qe2 {[%emt 0:00:30] White has more active pieces.} Nf6 {[%emt 0:00:30]} 13. c4 {[%emt 0:00:30]} Kf7 {[%emt 0:00:30]} 14. Nc3 {[%emt 0:00:30]} h6 {[%emt 0:00:30] Prevents Bg5.} 15. h3 {[%emt 0:00:30]} Rf8 {[%emt 0:00:30]} 16. Be3 {[%emt 0:00:30]} Kg8 {[%emt 0:00:30]} 17. Rad1 {[%emt 0:00:30]} Bd7 {[%emt 0:00:30]} 18. Bc2 {[%emt 0:00:30]} Qe7 {[%emt 0:00:30]} 19. cxd5 {[%emt 0:00:30]} exd5 {[%emt 0:00:30]} (19... e5 $16 20. Rfe1 Qf7) 20. Nxd5 $18 {[%emt 0:00:30]} Nxd5 {[%emt 0:00:30]} 21. Rxd5 {[%emt 0:00:30] Strongly threatening Qd3.} Bc6 $2 {[%emt 0:00:30] [#]} (21... Rad8 22. Rfd1 (22. Qd3 Bf5 $11) 22... Rf6) 22. Qd3 {[%emt 0:00:30]} Bxd5 {[%emt 0:00:30]} 23. Qxd5+ {[%emt 0:00:30]} Kh8 $2 {[%emt 0:00:30] [#]} (23... Rf7 24. Qd3 (24. Bg6 Rd8 $18) 24... Kf8) 24. Qd3 $1 {[%emt 0:00:30][%csl Gc2][%cal Rd3h7]} Kg8 {[%emt 0:00:30]} 25. Qh7+ {[%emt 0:00:30]} Kf7 {[%emt 0:00:30]} 26. Qg6+ {[%emt 0:00:30] Black is weak on the light squares} Kg8 {[%emt 0:00:30]} 27. Bd4 {[%emt 0:00:30] Bb3+ would kill now. This pair of bishops is nice.} Rf6 {[%emt 0:00:30]} 28. Qh7+ {[%emt 0:00:30]} Kf7 {[%emt 0:00:30][%cal Bg8f7,Bf7f6,Bf6g5,Bg5f4][%mdl 32]} 29. Bxf6 {[%emt 0:00:30]} Qxf6 {[%emt 0:00:30]} 30. Re1 {[%emt 0:00:30] Threatening mate with Bb3+.} Qd4 {[%emt 0:00:30]} 31. Bb3+ {[%emt 0:00:30] White mates.} Kf6 {[%emt 0:00:30]} 32. Re6+ {[%emt 0:00:30]} Kg5 {[%emt 0:00:30]} 33. Qg6+ {[%emt 0:00:30]} Kf4 {[%emt 0:00:30]} 34. Qg4# {[%emt 0:00:30] Weighted Error Value: White=0.22 (precise) /Black=0.55. Mistake: 	White=1 	Black=3 Inaccurate: 	--- 	Black=3 OK: 	White=6 	Black=4 Best: 	White=1 	Black=1 Strong: 	White=1 	---} 1-0

[Event "XTX Markets London Classic-Elite 2024"]
[Site "London"]
[Date "2024.12.02"]
[Round "4.2"]
[White "Vidit, Santosh Gujrathi"]
[Black "Adams, Michael"]
[Result "1/2-1/2"]
[WhiteElo "2739"]
[BlackElo "2662"]
[Annotator "RC"]
[PlyCount "118"]
[EventDate "2024.??.??"]
[TimeControl "60"]

1. Nf3 {[%emt 0:05:41]} d5 {[%emt 0:00:00]} 2. g3 {[%emt 0:00:30]} Nf6 {[%emt 0:00:08]} 3. Bg2 {[%emt 0:00:30]} c5 {[%emt 0:00:30]} 4. O-O {[%emt 0:00:30]} g6 {[%emt 0:00:30]} 5. d4 {[%emt 0:00:30]} cxd4 {[%emt 0:00:30]} 6. Nxd4 {[%emt 0:00:30]} Bg7 {[%emt 0:00:30]} 7. Nb3 {[%emt 0:00:30]} O-O {[%emt 0:00:30]} 8. Nc3 {[%emt 0:00:30]} e6 {[%emt 0:00:30]} 9. e4 {[%emt 0:00:30]} Nc6 {[%emt 0:00:30]} 10. exd5 {[%emt 0:00:30]} Nxd5 {[%emt 0:00:30]} 11. Nxd5 {[%emt 0:00:30]} exd5 {[%emt 0:00:30]} 12. c3 {[%emt 0:00:30]} a5 $146 {[%emt 0:00:30]} ({RR} 12... d4 13. cxd4 Nxd4 14. Nxd4 Bxd4 15. Bh6 Re8 16. Qd2 Bg7 17. Qxd8 Rxd8 18. Bxg7 Kxg7 19. Rfd1 Bg4 20. Rxd8 Rxd8 21. Bxb7 Rb8 22. Bd5 Rxb2 23. Kg2 Be6 24. Bxe6 fxe6 25. Rd1 Rxa2 26. Rd7+ Kg8 27. Re7 {Svane,R (2628)-Grischuk,A (2689) chess.com INT 2024 ½-½ (40)}) ({RR} 12... d4 13. cxd4 Nxd4 14. Be3 Nc6 15. Nc5 Qe7 16. Re1 Rd8 17. Qb3 Qc7 18. Rac1 Qb6 19. Nxb7 Qxb3 20. Nxd8 Qxb2 21. Nxc6 Bb7 22. Rb1 Qc3 23. Rec1 {1-0 (23) Ding Liren (2811)-Grischuk,A (2745) chess.com INT 2022}) 13. Be3 {[%emt 0:00:30]} a4 {[%emt 0:00:30]} 14. Nd4 {[%emt 0:00:30]} Ne5 {[%emt 0:00:30]} 15. b3 {[%emt 0:00:30]} Re8 {[%emt 0:00:30]} 16. h3 {[%emt 0:00:30]} b6 {[%emt 0:00:30]} 17. bxa4 {[%emt 0:00:30]} Bd7 {[%emt 0:00:30]} 18. Nb5 {[%emt 0:00:30]} Bc6 {[%emt 0:00:30]} 19. Rb1 {[%emt 0:00:30]} h5 {[%emt 0:00:30]} 20. Bd4 {[%emt 0:00:30]} h4 {[%emt 0:00:30]} 21. gxh4 {[%emt 0:00:30]} Qxh4 {[%emt 0:00:30]} 22. Nc7 {[%emt 0:00:30]} Bxa4 {[%emt 1:07:10]} 23. Qe2 {[%emt 1:05:30]} Nc4 {[%emt 0:06:20]} 24. Qd3 {[%emt 0:06:11]} Bxd4 {[%emt 0:01:49]} 25. cxd4 {[%emt 0:00:14]} Bc6 {[%emt 0:01:33]} 26. Nxe8 {[%emt 0:01:39]} Rxe8 {[%emt 0:00:03]} 27. Rfe1 {[%emt 0:02:00]} Ra8 {[%emt 0:00:31]} 28. Re2 {[%emt 0:00:24]} Kg7 {[%emt 0:01:30]} 29. Qc3 {[%emt 0:01:46]} Qf6 {[%emt 0:02:16]} 30. Rb4 {[%emt 0:01:26]} Ra3 {[%emt 0:05:22]} 31. Rb3 {[%emt 0:01:25]} Ra8 {[%emt 0:00:07]} 32. Qa1 {[%emt 0:00:50]} Qg5 {[%emt 0:01:20]} 33. Qe1 {[%emt 0:02:07]} Ra7 {[%emt 0:01:29]} 34. Rg3 {[%emt 0:01:45]} Qf6 {[%emt 0:01:02]} 35. Rf3 {[%emt 0:00:58]} Qg5 {[%emt 0:04:11]} 36. Qb4 {[%emt 0:02:23]} Qh4 {[%emt 0:00:14]} 37. Rc3 {[%emt 0:01:25]} Qf6 {[%emt 0:01:54]} 38. h4 {[%emt 0:01:24]} Qxh4 {[%emt 0:01:56]} 39. Rxc4 {[%emt 0:00:51]} dxc4 {[%emt 0:00:22]} 40. Bxc6 {[%emt 0:00:09]} Qxd4 {[%emt 0:00:27]} 41. a4 {[%emt 0:21:00]} Rc7 {[%emt 0:03:26]} 42. Bg2 {[%emt 0:00:44]} Rc5 {[%emt 0:05:14]} 43. Re3 {[%emt 0:02:20]} Ra5 {[%emt 0:02:28]} 44. Re8 {[%emt 0:03:42]} Qa1+ {[%emt 0:04:24]} 45. Kh2 {[%emt 0:00:54]} Rh5+ {[%emt 0:03:03]} 46. Bh3 {[%emt 0:00:29]} Qd4 {[%emt 0:01:23]} 47. Qf8+ {[%emt 0:00:21]} Kf6 {[%emt 0:00:03]} 48. Re3 {[%emt 0:00:54]} Qd5 {[%emt 0:03:23]} 49. Kg3 {[%emt 0:01:34]} Rg5+ {[%emt 0:04:39]} 50. Kh2 {[%emt 0:00:11]} Rh5 {[%emt 0:00:01]} 51. Qb8 {[%emt 0:00:34]} Qd4 {[%emt 0:01:19]} 52. Rf3+ {[%emt 0:01:15]} Kg7 {[%emt 0:00:06]} 53. Qc7 {[%emt 0:00:23]} Qd5 {[%emt 0:01:11]} 54. Rf4 {[%emt 0:02:25]} g5 {[%emt 0:00:47]} 55. Rxc4 {[%emt 0:01:08]} Qe6 {[%emt 0:00:57]} 56. Rc3 {[%emt 0:01:19]} g4 {[%emt 0:00:18]} 57. Rg3 {[%emt 0:00:25]} Rxh3+ {[%emt 0:00:14]} 58. Rxh3 {[%emt 0:00:05]} gxh3 {[%emt 0:00:03]} 59. Qg3+ {[%emt 0:00:09]} Kf8 {[%emt 0:02:51]} 1/2-1/2

[Event "XTX Markets London Classic-Elite 2024"]
[Site "London"]
[Date "2024.12.02"]
[Round "4.3"]
[White "Vitiugov, Nikita"]
[Black "Jones, Gawain C B"]
[Result "1/2-1/2"]
[WhiteElo "2668"]
[BlackElo "2639"]
[Annotator "TA"]
[PlyCount "45"]
[EventDate "2024.??.??"]
[TimeControl "60"]

{[%evp 16,45,38,22,41,15,12,12,34,30,31,0,52,31,75,57,61,6,34,0,27,1,22,6,5,0,0,0,4,0,0,0]} 1. d4 {[%emt 0:00:00]} Nf6 {[%emt 0:02:09]} 2. c4 {[%emt 0:00:00]} g6 {[%emt 0:00:30]} 3. Nc3 {[%emt 0:00:00]} Bg7 {[%emt 0:00:30]} 4. e4 {[%emt 0:00:20]} d6 {[%emt 0:00:30]} 5. h3 {[%emt 0:00:30]} e5 {[%emt 0:00:30]} 6. d5 {[%emt 0:00:30]} a5 {[%emt 0:00:30]} 7. Nf3 {[%emt 0:00:30]} Na6 {[%emt 0:00:30]} 8. Be3 {[%emt 0:00:30]} O-O {[%emt 0:00:30]} 9. g4 {[%emt 0:00:30]} Nd7 {[%emt 0:00:30]} 10. Rg1 {[%emt 0:00:30]} ({RR} 10. Nd2 Ndc5 11. Rg1 Kh8 12. a3 Bd7 13. Qc2 c6 14. O-O-O cxd5 15. cxd5 Rc8 16. Kb1 a4 17. h4 f5 18. h5 f4 19. Bxc5 Nxc5 20. hxg6 hxg6 21. g5 Rf7 22. Bb5 Kg8 23. Bxd7 Qxd7 24. Nc4 Qd8 {Carlsen,M (2832)-Nakamura,H (2786) Chess.com INT 2018 1-0 (62)}) 10... Ndc5 {[%emt 0:00:30]} 11. h4 {[%emt 0:00:30]} ({RR} 11. a3 Bd7 12. Nd2 Kh8 13. g5 f5 14. f3 c6 15. h4 cxd5 16. cxd5 b5 17. h5 gxh5 18. exf5 Bxf5 19. Nce4 Qd7 20. Qe2 Rab8 21. Bxc5 Nxc5 22. Qe3 Qf7 23. b4 Nxe4 24. fxe4 Bg4 25. Be2 Qf4 {Blackburn,J (2227)-Jones,G (2671) England 2022 0-1 (32)}) 11... Kh8 {[%emt 0:00:30]} 12. g5 {[%emt 0:00:30][%cal Oh4h5]} ({RR} 12. h5 gxh5 13. g5 Bg4 14. Be2 f6 15. Nh4 fxg5 16. Bxg4 gxh4 17. Bf5 Qe7 18. Qxh5 Bf6 19. O-O-O Rg8 20. Ne2 a4 21. Kb1 Rab8 22. Nc3 b6 23. a3 Ra8 24. Kc2 Rab8 25. Nb5 Ra8 26. Na7 Rxa7 {Mickiewicz,P (2257)-Zysko,J (2089) Warsaw POL 2024 1-0 (32)}) 12... f6 $146 {[%emt 0:00:30][%cal Oa5a4]} ({RR} 12... f5 13. gxf6 Qxf6 14. Be2 Nb4 15. Rg3 Bd7 16. Kf1 Qe7 17. a3 Nba6 18. Qc2 a4 19. Kg2 Bf6 20. Rh1 Rg8 21. Bh6 Nb3 22. Bd1 Nac5 23. Qe2 Bg7 24. Bg5 Bf6 25. Qe3 Nd4 26. Bh6 Nxf3 27. Qxf3 {Xu,X (2583)-Vignesh,N (2459) Xingtai 2019 ½-½ (32)}) ({RR} 12... Bd7 13. h5 Kg8 14. Nd2 Qe8 15. Nb3 b6 16. Rh1 f6 17. gxf6 Rxf6 18. Bg5 Rf8 19. Qd2 Nxb3 20. axb3 Nc5 21. Ra3 gxh5 22. Be3 Qg6 23. Bxc5 bxc5 24. Be2 Bh6 25. Qd3 h4 26. Ra1 Qg2 27. Rf1 {Laliena Solares,L (2176)-Bressac,S (2389) Santa Cruz de La Palma ESP 2023 0-1}) 13. Be2 {[%emt 0:00:30]} fxg5 {[%emt 0:00:30]} ({Better is} 13... f5 $11) 14. hxg5 {[%emt 0:00:30]} Bd7 {[%emt 0:00:30]} 15. Rh1 {[%emt 0:00:30]} Kg8 {[%emt 0:00:30]} 16. Rh2 {[%emt 0:00:30]} (16. Qd2 $14) 16... Qe7 {[%emt 0:30:10][%cal Of8f4]} 17. Kf1 {[%emt 0:50:54]} Rf7 {[%emt 0:03:58]} 18. Kg2 {[%emt 0:01:26]} Raf8 {[%emt 0:03:25][%cal Of7f4] The position is equal.} (18... Rf4 $5) 19. Qd2 {[%emt 0:03:17]} Bg4 {[%emt 0:03:08]} 20. Ne1 {[%emt 0:05:30]} Bd7 {[%emt 0:10:15]} 21. Nf3 {[%emt 0:03:28]} Bg4 {[%emt 0:00:20]} 22. Ne1 {[%emt 0:03:42]} Bd7 {[%emt 0:00:27][%cal Of7f4]} 23. Nf3 {Weighted Error Value: White=0.16 (very precise) /Black=0.15 (very precise) . Mistake:    	White=1   	Black=1   Inaccurate:   	White=4   	Black=3   OK:     	White=4   	Black=5   Best:    	White=1   	---} 1/2-1/2